[Event "Early-Titled-Tuesday-Blitz-January-23-2024"]
[Site "Chess.com"]
[Date "2024.01.23"]
[Round "1"]
[White "Polish_fighter3000"]
[Black "NLLO777"]
[Result "1-0"]
[WhiteElo "3098"]
[BlackElo "2534"]
[TimeControl "180+1"]
[EndTime "8:07:54 PST"]
[Termination "Polish_fighter3000 won by resignation"]

1. b4 {[%clk 0:03:00.9]} 1... Nf6 {[%clk 0:02:58.8]} 2. Bb2 {[%clk 0:03:01.2]}
2... e6 {[%clk 0:02:58]} 3. a3 {[%clk 0:03:01.8]} 3... d5 {[%clk 0:02:58]} 4. e3
{[%clk 0:03:01.8]} 4... Be7 {[%clk 0:02:57.8]} 5. Nf3 {[%clk 0:03:01.5]} 5...
O-O {[%clk 0:02:58.4]} 6. c4 {[%clk 0:03:01.9]} 6... b6 {[%clk 0:02:53.3]} 7.
Qc2 {[%clk 0:02:52.2]} 7... Bb7 {[%clk 0:02:53.5]} 8. cxd5 {[%clk 0:02:52.2]}
8... Nxd5 {[%clk 0:02:52.5]} 9. Bd3 {[%clk 0:02:51.1]} 9... h6 {[%clk
0:02:50.2]} 10. Bh7+ {[%clk 0:02:45.8]} 10... Kh8 {[%clk 0:02:50.3]} 11. Be4
{[%clk 0:02:45.7]} 11... Nd7 {[%clk 0:02:48.5]} 12. d4 {[%clk 0:02:26.6]} 12...
Rc8 {[%clk 0:02:46.1]} 13. O-O {[%clk 0:02:24]} 13... N7f6 {[%clk 0:02:40.6]}
14. Bd3 {[%clk 0:02:21.7]} 14... c5 {[%clk 0:02:38.7]} 15. dxc5 {[%clk
0:02:21.7]} 15... bxc5 {[%clk 0:02:39.6]} 16. b5 {[%clk 0:02:22.2]} 16... c4
{[%clk 0:02:23]} 17. Be2 {[%clk 0:02:22.1]} 17... Qa5 {[%clk 0:02:19]} 18. Nd4
{[%clk 0:02:11.4]} 18... c3 {[%clk 0:02:00]} 19. Bc1 {[%clk 0:02:11.8]} 19...
Rfd8 {[%clk 0:01:55.2]} 20. Nb3 {[%clk 0:02:01.2]} 20... Qa4 {[%clk 0:01:51.7]}
21. f3 {[%clk 0:02:00.6]} 21... Bc5 {[%clk 0:01:47.7]} 22. Nd4 {[%clk
0:01:46.8]} 22... Qxc2 {[%clk 0:01:40.7]} 23. Nxc2 {[%clk 0:01:47.7]} 23... Kg8
{[%clk 0:01:22.2]} 24. Kh1 {[%clk 0:01:44.6]} 24... Bb6 {[%clk 0:01:20.7]} 25.
e4 {[%clk 0:01:41.2]} 25... Ne7 {[%clk 0:01:15.6]} 26. a4 {[%clk 0:01:41.7]}
26... Ng6 {[%clk 0:01:05.6]} 27. a5 {[%clk 0:01:16.6]} 27... Bc5 {[%clk
0:01:03.9]} 28. Ra4 {[%clk 0:00:55.4]} 28... Bd6 {[%clk 0:00:58.6]} 29. a6
{[%clk 0:00:51.4]} 29... Ba8 {[%clk 0:00:58.7]} 30. g3 {[%clk 0:00:46.6]} 30...
Ne5 {[%clk 0:00:48.7]} 31. Rd1 {[%clk 0:00:43.8]} 31... g5 {[%clk 0:00:39.8]}
32. Rad4 {[%clk 0:00:35.9]} 32... Be7 {[%clk 0:00:15.6]} 33. Ba3 {[%clk
0:00:30.5]} 33... Rxd4 {[%clk 0:00:14.9]} 34. Rxd4 {[%clk 0:00:30.3]} 34... Bxa3
{[%clk 0:00:14.9]} 35. Nbxa3 {[%clk 0:00:30.9]} 35... g4 {[%clk 0:00:15.5]} 36.
f4 {[%clk 0:00:18.6]} 36... Nxe4 {[%clk 0:00:14]} 37. Kg1 {[%clk 0:00:14.7]}
37... Nf3+ {[%clk 0:00:12.9]} 38. Bxf3 {[%clk 0:00:14.7]} 38... gxf3 {[%clk
0:00:13.8]} 39. Ne3 {[%clk 0:00:09.3]} 39... f6 {[%clk 0:00:07.1]} 40. Nac2
{[%clk 0:00:06.9]} 40... e5 {[%clk 0:00:05.3]} 41. Rd7 {[%clk 0:00:03.7]} 41...
exf4 {[%clk 0:00:03.7]} 42. gxf4 {[%clk 0:00:04.6]} 42... Nd2 {[%clk 0:00:02.8]}
43. Rxa7 {[%clk 0:00:04.3]} 43... Be4 {[%clk 0:00:03]} 44. b6 {[%clk 0:00:04.2]}
44... Rd8 {[%clk 0:00:02.6]} 45. b7 {[%clk 0:00:03.4]} 45... Bxc2 {[%clk
0:00:03.2]} 46. Nxc2 {[%clk 0:00:04.3]} 46... Ne4 {[%clk 0:00:03.7]} 47. Ra8
{[%clk 0:00:04.2]} 47... Kg7 {[%clk 0:00:03.3]} 48. Rxd8 {[%clk 0:00:04.3]} 1-0

[Event "Early-Titled-Tuesday-Blitz-January-23-2024"]
[Site "Chess.com"]
[Date "2024.01.23"]
[Round "1"]
[White "SirStrateg"]
[Black "Witty_Alien"]
[Result "0-1"]
[WhiteElo "2621"]
[BlackElo "2335"]
[TimeControl "180+1"]
[EndTime "8:07:54 PST"]
[Termination "Witty_Alien won by resignation"]

1. d4 {[%clk 0:03:00.9]} 1... e5 {[%clk 0:02:59.4]} 2. dxe5 {[%clk 0:02:58.2]}
2... d6 {[%clk 0:02:59.4]} 3. Nf3 {[%clk 0:02:54]} 3... Nc6 {[%clk 0:02:59.7]}
4. exd6 {[%clk 0:02:52.9]} 4... Bxd6 {[%clk 0:03:00]} 5. Bg5 {[%clk 0:02:51.1]}
5... Nf6 {[%clk 0:02:58.1]} 6. Nbd2 {[%clk 0:02:49.1]} 6... h6 {[%clk
0:02:48.4]} 7. Bh4 {[%clk 0:02:43]} 7... g5 {[%clk 0:02:35]} 8. Bg3 {[%clk
0:02:42.5]} 8... Ng4 {[%clk 0:02:35.7]} 9. Ne4 {[%clk 0:02:31.7]} 9... Bb4+
{[%clk 0:02:09.1]} 10. c3 {[%clk 0:02:30.7]} 10... Qe7 {[%clk 0:02:06.6]} 11.
Qd3 {[%clk 0:01:59.5]} 11... f5 {[%clk 0:01:22.6]} 12. Ned2 {[%clk 0:01:55.9]}
12... Be6 {[%clk 0:01:01.9]} 13. h3 {[%clk 0:01:49.9]} 13... Nf6 {[%clk
0:00:45.6]} 14. Ne5 {[%clk 0:01:37]} 14... Rd8 {[%clk 0:00:38.9]} 15. Nxc6
{[%clk 0:01:31]} 15... bxc6 {[%clk 0:00:37.3]} 16. Qc2 {[%clk 0:01:31]} 16... f4
{[%clk 0:00:34.8]} 17. Bh2 {[%clk 0:01:26.5]} 17... Bc5 {[%clk 0:00:33.5]} 18.
Bg1 {[%clk 0:01:12.8]} 18... Nd5 {[%clk 0:00:17.4]} 19. Nb3 {[%clk 0:00:53.9]}
19... Nb4 {[%clk 0:00:15.5]} 20. Qe4 {[%clk 0:00:48.8]} 20... Bxb3 {[%clk
0:00:05.4]} 21. Qxe7+ {[%clk 0:00:43.1]} 21... Kxe7 {[%clk 0:00:05.8]} 22. e4
{[%clk 0:00:34]} 22... Nc2+ {[%clk 0:00:04]} 23. Ke2 {[%clk 0:00:34.4]} 23...
Nxa1 {[%clk 0:00:04.3]} 24. axb3 {[%clk 0:00:34.5]} 24... Nxb3 {[%clk
0:00:04.5]} 25. Kf3 {[%clk 0:00:33.2]} 25... h5 {[%clk 0:00:02.5]} 26. Ba6
{[%clk 0:00:29.3]} 26... Nd2+ {[%clk 0:00:02.5]} 27. Ke2 {[%clk 0:00:29.6]}
27... Nxe4 {[%clk 0:00:03.1]} 28. Bd3 {[%clk 0:00:25.7]} 28... Rxd3 {[%clk
0:00:01.7]} 29. Kxd3 {[%clk 0:00:26]} 29... Nxf2+ {[%clk 0:00:02.6]} 30. Bxf2
{[%clk 0:00:26.1]} 30... Bxf2 {[%clk 0:00:03.5]} 31. Ra1 {[%clk 0:00:26.2]}
31... Be3 {[%clk 0:00:03.7]} 32. Ra5 {[%clk 0:00:24.7]} 32... g4 {[%clk
0:00:03.7]} 33. Rg5 {[%clk 0:00:23.4]} 33... gxh3 {[%clk 0:00:03.4]} 34. gxh3
{[%clk 0:00:24]} 34... Kf6 {[%clk 0:00:03.2]} 35. Rg1 {[%clk 0:00:22.4]} 35...
Rd8+ {[%clk 0:00:03.8]} 36. Ke4 {[%clk 0:00:22.4]} 36... Re8+ {[%clk 0:00:04.2]}
37. Kf3 {[%clk 0:00:22.6]} 37... Rb8 {[%clk 0:00:04.5]} 38. Rg2 {[%clk
0:00:22.5]} 38... Rb5 {[%clk 0:00:04.4]} 39. Ke4 {[%clk 0:00:21.3]} 39... Re5+
{[%clk 0:00:04.5]} 40. Kf3 {[%clk 0:00:21.5]} 40... Rd5 {[%clk 0:00:05.1]} 41.
Rg8 {[%clk 0:00:21.5]} 41... Rd2 {[%clk 0:00:05]} 42. Rf8+ {[%clk 0:00:20.4]}
42... Ke5 {[%clk 0:00:05.6]} 43. Re8+ {[%clk 0:00:20.9]} 43... Kf5 {[%clk
0:00:06.3]} 44. Rf8+ {[%clk 0:00:21.4]} 44... Kg5 {[%clk 0:00:07]} 45. Rg8+
{[%clk 0:00:22]} 45... Kh4 {[%clk 0:00:07.7]} 46. Rg6 {[%clk 0:00:20.7]} 46...
Rf2+ {[%clk 0:00:07.5]} 47. Ke4 {[%clk 0:00:20.7]} 47... Rxb2 {[%clk 0:00:07.9]}
48. Rxc6 {[%clk 0:00:21.1]} 48... Kxh3 {[%clk 0:00:05.4]} 49. Rxc7 {[%clk
0:00:21.7]} 49... h4 {[%clk 0:00:05.9]} 50. Kf3 {[%clk 0:00:21.7]} 50... Rf2+
{[%clk 0:00:05.8]} 51. Ke4 {[%clk 0:00:22.3]} 51... Kg2 {[%clk 0:00:06.1]} 52.
Rg7+ {[%clk 0:00:22.5]} 52... Kf1 {[%clk 0:00:06.6]} 53. c4 {[%clk 0:00:22.7]}
53... h3 {[%clk 0:00:07]} 54. Rh7 {[%clk 0:00:23.4]} 54... h2 {[%clk 0:00:07.6]}
55. c5 {[%clk 0:00:23.7]} 55... Bxc5 {[%clk 0:00:07.6]} 56. Kd5 {[%clk 0:00:24]}
56... Be3 {[%clk 0:00:07.1]} 0-1

[Event "Early-Titled-Tuesday-Blitz-January-23-2024"]
[Site "Chess.com"]
[Date "2024.01.23"]
[Round "1"]
[White "EvgenyBurmakin"]
[Black "dozer80"]
[Result "1-0"]
[WhiteElo "2437"]
[BlackElo "2726"]
[TimeControl "180+1"]
[EndTime "8:07:55 PST"]
[Termination "EvgenyBurmakin won by resignation"]

1. e4 {[%clk 0:03:00.9]} 1... c5 {[%clk 0:02:54.4]} 2. Nc3 {[%clk 0:02:57.9]}
2... a6 {[%clk 0:02:53.5]} 3. Nf3 {[%clk 0:02:56.9]} 3... e6 {[%clk 0:02:51.4]}
4. d4 {[%clk 0:02:57.3]} 4... cxd4 {[%clk 0:02:51.9]} 5. Nxd4 {[%clk 0:02:58.2]}
5... g6 {[%clk 0:02:51.7]} 6. Be3 {[%clk 0:02:56.3]} 6... Bg7 {[%clk 0:02:50.8]}
7. Qd2 {[%clk 0:02:56.5]} 7... b5 {[%clk 0:02:49]} 8. a3 {[%clk 0:02:51.1]} 8...
Bb7 {[%clk 0:02:48.3]} 9. O-O-O {[%clk 0:02:50.4]} 9... Nc6 {[%clk 0:02:44.2]}
10. h4 {[%clk 0:02:47.8]} 10... h6 {[%clk 0:02:32.1]} 11. f4 {[%clk 0:02:44.6]}
11... Nf6 {[%clk 0:02:26.2]} 12. e5 {[%clk 0:02:35.6]} 12... Ng4 {[%clk
0:02:21.4]} 13. Bg1 {[%clk 0:02:35.1]} 13... h5 {[%clk 0:02:19.9]} 14. Be2
{[%clk 0:02:31.3]} 14... Nh6 {[%clk 0:02:11.2]} 15. Bf3 {[%clk 0:02:26.3]} 15...
Rc8 {[%clk 0:02:09.6]} 16. Nb3 {[%clk 0:02:14.3]} 16... Na5 {[%clk 0:01:44]} 17.
Nxa5 {[%clk 0:02:07.6]} 17... Bxf3 {[%clk 0:01:40.8]} 18. gxf3 {[%clk
0:02:06.5]} 18... O-O {[%clk 0:01:29.6]} 19. Nb7 {[%clk 0:02:02.9]} 19... Qc7
{[%clk 0:01:26.3]} 20. Qxd7 {[%clk 0:02:00.5]} 20... Qc4 {[%clk 0:01:24.8]} 21.
Qd4 {[%clk 0:01:47.5]} 21... Qc6 {[%clk 0:01:24.3]} 22. Qe4 {[%clk 0:01:41.1]}
22... Qc7 {[%clk 0:01:22.2]} 23. Nc5 {[%clk 0:01:30.9]} 23... Nf5 {[%clk
0:01:18.1]} 24. Bf2 {[%clk 0:01:30.4]} 24... Qb6 {[%clk 0:01:09.2]} 25. Nd3
{[%clk 0:01:16.1]} 25... Qb8 {[%clk 0:01:09.1]} 26. Nb4 {[%clk 0:01:10.5]} 26...
a5 {[%clk 0:01:03.2]} 27. Na6 {[%clk 0:00:54.6]} 27... Qa8 {[%clk 0:00:48.5]}
28. Qxa8 {[%clk 0:00:53.3]} 28... Rxa8 {[%clk 0:00:49.4]} 29. Nc7 {[%clk
0:00:53.5]} 29... Rab8 {[%clk 0:00:36.7]} 30. Ne4 {[%clk 0:00:35.7]} 30... Rfc8
{[%clk 0:00:32.4]} 31. Na6 {[%clk 0:00:33.5]} 31... Ra8 {[%clk 0:00:31.7]} 32.
Nac5 {[%clk 0:00:31.6]} 32... Bh6 {[%clk 0:00:31.9]} 33. Ng5 {[%clk 0:00:30.2]}
33... Rc6 {[%clk 0:00:24.6]} 34. Nce4 {[%clk 0:00:18.8]} 34... Rac8 {[%clk
0:00:20.8]} 35. Rd2 {[%clk 0:00:19.1]} 35... b4 {[%clk 0:00:20.4]} 36. axb4
{[%clk 0:00:19.8]} 36... axb4 {[%clk 0:00:21.3]} 37. b3 {[%clk 0:00:20.2]} 37...
Ra6 {[%clk 0:00:18.5]} 38. Kb2 {[%clk 0:00:19.6]} 38... Rca8 {[%clk 0:00:18.6]}
39. Rb1 {[%clk 0:00:19.3]} 39... Ne7 {[%clk 0:00:12.3]} 40. Bc5 {[%clk 0:00:16]}
40... Nd5 {[%clk 0:00:12.2]} 41. Nf6+ {[%clk 0:00:15.7]} 41... Nxf6 {[%clk
0:00:11.7]} 42. exf6 {[%clk 0:00:16.6]} 42... Rc6 {[%clk 0:00:11.5]} 43. Bxb4
{[%clk 0:00:15.9]} 43... Rb8 {[%clk 0:00:11.2]} 44. Be7 {[%clk 0:00:15.6]} 44...
Bxg5 {[%clk 0:00:06.5]} 45. fxg5 {[%clk 0:00:15.4]} 1-0

[Event "Early-Titled-Tuesday-Blitz-January-23-2024"]
[Site "Chess.com"]
[Date "2024.01.23"]
[Round "1"]
[White "KVAIDAN"]
[Black "sonicdravise"]
[Result "1-0"]
[WhiteElo "2366"]
[BlackElo "2648"]
[TimeControl "180+1"]
[EndTime "8:07:55 PST"]
[Termination "KVAIDAN won by checkmate"]

1. f4 {[%clk 0:03:00.9]} 1... c5 {[%clk 0:02:58.9]} 2. Nf3 {[%clk 0:03:00.5]}
2... Nc6 {[%clk 0:02:59.6]} 3. d3 {[%clk 0:02:58.2]} 3... g6 {[%clk 0:02:57.1]}
4. e4 {[%clk 0:02:58.3]} 4... Bg7 {[%clk 0:02:57.7]} 5. Be2 {[%clk 0:02:58.8]}
5... e6 {[%clk 0:02:56.9]} 6. O-O {[%clk 0:02:59.2]} 6... Nge7 {[%clk
0:02:57.5]} 7. Qe1 {[%clk 0:02:57.9]} 7... O-O {[%clk 0:02:57.1]} 8. Nc3 {[%clk
0:02:57.2]} 8... d5 {[%clk 0:02:55.7]} 9. Qg3 {[%clk 0:02:57.6]} 9... Nd4 {[%clk
0:02:53]} 10. Bd1 {[%clk 0:02:56.7]} 10... Nec6 {[%clk 0:02:48.9]} 11. Ne2
{[%clk 0:02:47.1]} 11... Nxf3+ {[%clk 0:02:45.7]} 12. Qxf3 {[%clk 0:02:46.9]}
12... dxe4 {[%clk 0:02:41]} 13. dxe4 {[%clk 0:02:46.2]} 13... b6 {[%clk
0:02:38.4]} 14. c3 {[%clk 0:02:45.8]} 14... Bb7 {[%clk 0:02:28.7]} 15. Qg3
{[%clk 0:02:42.5]} 15... f5 {[%clk 0:02:23.3]} 16. Bb3 {[%clk 0:02:38.1]} 16...
Qf6 {[%clk 0:02:18.5]} 17. exf5 {[%clk 0:02:27.3]} 17... gxf5 {[%clk 0:02:18.2]}
18. Qe3 {[%clk 0:02:27.2]} 18... Rae8 {[%clk 0:02:14.8]} 19. Ng3 {[%clk
0:02:27.2]} 19... Qg6 {[%clk 0:02:13]} 20. Qe2 {[%clk 0:02:23.1]} 20... Kh8
{[%clk 0:02:09.1]} 21. Nh5 {[%clk 0:02:16.7]} 21... Bh6 {[%clk 0:01:48.7]} 22.
Ba4 {[%clk 0:02:08.5]} 22... Rg8 {[%clk 0:01:35.9]} 23. Ng3 {[%clk 0:02:02.8]}
23... Bg7 {[%clk 0:01:31.6]} 24. Be3 {[%clk 0:02:00.8]} 24... Re7 {[%clk
0:01:08]} 25. Rad1 {[%clk 0:01:58.8]} 25... Na5 {[%clk 0:00:59.1]} 26. Rd6
{[%clk 0:01:53.6]} 26... Bf6 {[%clk 0:00:54]} 27. b4 {[%clk 0:01:51]} 27... cxb4
{[%clk 0:00:33.4]} 28. cxb4 {[%clk 0:01:49.4]} 28... h5 {[%clk 0:00:30.4]} 29.
Rf2 {[%clk 0:01:25.5]} 29... h4 {[%clk 0:00:28.7]} 30. Qh5+ {[%clk 0:01:25.4]}
30... Rh7 {[%clk 0:00:18.6]} 31. Qxg6 {[%clk 0:01:20.8]} 31... Rxg6 {[%clk
0:00:19.5]} 32. bxa5 {[%clk 0:01:01.2]} 32... hxg3 {[%clk 0:00:18.8]} 33. hxg3
{[%clk 0:01:01.1]} 33... Rxg3 {[%clk 0:00:17.1]} 34. Bd4 {[%clk 0:00:56.3]}
34... Bxd4 {[%clk 0:00:15.7]} 35. Rxd4 {[%clk 0:00:56.1]} 35... bxa5 {[%clk
0:00:14.7]} 36. Rd8+ {[%clk 0:00:55.3]} 36... Kg7 {[%clk 0:00:14.2]} 37. Rc2
{[%clk 0:00:51.7]} 37... Kh6 {[%clk 0:00:13.6]} 38. Re8 {[%clk 0:00:48.8]} 38...
Bd5 {[%clk 0:00:13.5]} 39. Bc6 {[%clk 0:00:48.2]} 39... Rhg7 {[%clk 0:00:11.1]}
40. Bxd5 {[%clk 0:00:45.8]} 40... exd5 {[%clk 0:00:12]} 41. Kh2 {[%clk
0:00:43.4]} 41... R3g4 {[%clk 0:00:11.8]} 42. Re6+ {[%clk 0:00:41.5]} 42... R7g6
{[%clk 0:00:11.8]} 43. Rxg6+ {[%clk 0:00:40]} 43... Kxg6 {[%clk 0:00:11.5]} 44.
g3 {[%clk 0:00:40.2]} 44... Kf6 {[%clk 0:00:12.1]} 45. Rc5 {[%clk 0:00:40.3]}
45... Ke6 {[%clk 0:00:12.5]} 46. Rxa5 {[%clk 0:00:40.5]} 46... Rg7 {[%clk
0:00:13.4]} 47. Ra6+ {[%clk 0:00:39.6]} 47... Ke7 {[%clk 0:00:12.2]} 48. Rxa7+
{[%clk 0:00:39.9]} 48... Kf6 {[%clk 0:00:13]} 49. Rxg7 {[%clk 0:00:39.6]} 49...
Kxg7 {[%clk 0:00:13.9]} 50. Kg2 {[%clk 0:00:40]} 50... Kf6 {[%clk 0:00:14.3]}
51. Kf2 {[%clk 0:00:40.5]} 51... Ke6 {[%clk 0:00:15]} 52. Ke3 {[%clk 0:00:41]}
52... Kd6 {[%clk 0:00:15.8]} 53. Kd4 {[%clk 0:00:41.5]} 53... Kc6 {[%clk
0:00:13.6]} 54. a4 {[%clk 0:00:41.1]} 54... Kd6 {[%clk 0:00:13.5]} 55. a5 {[%clk
0:00:41.5]} 55... Kc6 {[%clk 0:00:14.3]} 56. a6 {[%clk 0:00:41.9]} 56... Kb6
{[%clk 0:00:15]} 57. Kxd5 {[%clk 0:00:42.4]} 57... Kxa6 {[%clk 0:00:15.8]} 58.
Ke5 {[%clk 0:00:42.9]} 58... Kb6 {[%clk 0:00:16.7]} 59. Kxf5 {[%clk 0:00:43.5]}
59... Kc6 {[%clk 0:00:17.6]} 60. Ke6 {[%clk 0:00:44]} 60... Kc7 {[%clk 0:00:18]}
61. Ke7 {[%clk 0:00:44.3]} 61... Kc6 {[%clk 0:00:18.9]} 62. f5 {[%clk
0:00:44.7]} 62... Kc5 {[%clk 0:00:19.8]} 63. f6 {[%clk 0:00:45.2]} 63... Kd4
{[%clk 0:00:20.7]} 64. f7 {[%clk 0:00:45.7]} 64... Ke3 {[%clk 0:00:21.6]} 65.
f8=Q {[%clk 0:00:46.2]} 65... Kd3 {[%clk 0:00:22.5]} 66. g4 {[%clk 0:00:46.4]}
66... Kc3 {[%clk 0:00:23.4]} 67. g5 {[%clk 0:00:46.9]} 67... Kc4 {[%clk
0:00:24.3]} 68. g6 {[%clk 0:00:47.7]} 68... Kc5 {[%clk 0:00:25.2]} 69. g7 {[%clk
0:00:48.3]} 69... Kb6 {[%clk 0:00:26.1]} 70. g8=Q {[%clk 0:00:49]} 70... Kb5
{[%clk 0:00:27]} 71. Qb3+ {[%clk 0:00:48.6]} 71... Ka5 {[%clk 0:00:27.3]} 72.
Qa8# {[%clk 0:00:48.4]} 1-0

[Event "Early-Titled-Tuesday-Blitz-January-23-2024"]
[Site "Chess.com"]
[Date "2024.01.23"]
[Round "1"]
[White "alexrustemov"]
[Black "GlavkonVVS"]
[Result "1-0"]
[WhiteElo "2882"]
[BlackElo "2484"]
[TimeControl "180+1"]
[EndTime "8:07:57 PST"]
[Termination "alexrustemov won by checkmate"]

1. d4 {[%clk 0:03:00.9]} 1... Nf6 {[%clk 0:02:59.2]} 2. c4 {[%clk 0:03:01.2]}
2... c5 {[%clk 0:02:58.9]} 3. d5 {[%clk 0:03:00.9]} 3... e6 {[%clk 0:02:59.2]}
4. Nc3 {[%clk 0:03:00.3]} 4... exd5 {[%clk 0:02:59.3]} 5. cxd5 {[%clk
0:03:01.2]} 5... d6 {[%clk 0:02:59.7]} 6. e4 {[%clk 0:03:01.6]} 6... g6 {[%clk
0:03:00.1]} 7. h3 {[%clk 0:03:02]} 7... Bg7 {[%clk 0:03:00.5]} 8. Bd3 {[%clk
0:03:02.5]} 8... O-O {[%clk 0:03:00.9]} 9. Nf3 {[%clk 0:03:03]} 9... b5 {[%clk
0:03:01]} 10. a3 {[%clk 0:02:57.8]} 10... b4 {[%clk 0:02:46.4]} 11. axb4 {[%clk
0:02:55.5]} 11... cxb4 {[%clk 0:02:46.4]} 12. Ne2 {[%clk 0:02:53.8]} 12... Re8
{[%clk 0:02:41.3]} 13. Bg5 {[%clk 0:02:51.1]} 13... Qb6 {[%clk 0:02:30.4]} 14.
Nd2 {[%clk 0:02:30.2]} 14... Nbd7 {[%clk 0:02:13.7]} 15. Nc4 {[%clk 0:02:22.9]}
15... Qc7 {[%clk 0:01:56.3]} 16. f3 {[%clk 0:02:22]} 16... Nc5 {[%clk
0:01:40.9]} 17. O-O {[%clk 0:02:21.6]} 17... Ba6 {[%clk 0:01:24.4]} 18. Rc1
{[%clk 0:01:44.9]} 18... Rac8 {[%clk 0:00:44.6]} 19. b3 {[%clk 0:01:44.3]} 19...
Nfd7 {[%clk 0:00:42.4]} 20. Bc2 {[%clk 0:00:55.7]} 20... Bxc4 {[%clk 0:00:41.2]}
21. bxc4 {[%clk 0:00:55.6]} 21... Ne5 {[%clk 0:00:38]} 22. Nd4 {[%clk
0:00:36.4]} 22... Qb6 {[%clk 0:00:34.8]} 23. Kh1 {[%clk 0:00:34.6]} 23... Nxc4
{[%clk 0:00:34.8]} 24. Nc6 {[%clk 0:00:34.7]} 24... Ne5 {[%clk 0:00:30.5]} 25.
Ne7+ {[%clk 0:00:31.4]} 25... Rxe7 {[%clk 0:00:30.8]} 26. Bxe7 {[%clk
0:00:32.1]} 26... a5 {[%clk 0:00:26.7]} 27. Ba4 {[%clk 0:00:30.4]} 27... Bf8
{[%clk 0:00:22.1]} 28. Bf6 {[%clk 0:00:28.7]} 28... Ned3 {[%clk 0:00:20.4]} 29.
Rc2 {[%clk 0:00:26]} 29... b3 {[%clk 0:00:19.3]} 30. Rd2 {[%clk 0:00:24]} 30...
Nxa4 {[%clk 0:00:17]} 31. Rxd3 {[%clk 0:00:23.5]} 31... Rc2 {[%clk 0:00:16.1]}
32. Qb1 {[%clk 0:00:21.1]} 32... Nc5 {[%clk 0:00:15.9]} 33. Rc3 {[%clk
0:00:11.2]} 33... Rxc3 {[%clk 0:00:15.3]} 34. Bxc3 {[%clk 0:00:11.8]} 34... a4
{[%clk 0:00:15.9]} 35. Qd1 {[%clk 0:00:11.9]} 35... Qb5 {[%clk 0:00:16.3]} 36.
Re1 {[%clk 0:00:07.7]} 36... Bg7 {[%clk 0:00:16.4]} 37. Bxg7 {[%clk 0:00:07.1]}
37... Kxg7 {[%clk 0:00:16.8]} 38. e5 {[%clk 0:00:08]} 38... dxe5 {[%clk
0:00:16.6]} 39. d6 {[%clk 0:00:08.6]} 39... b2 {[%clk 0:00:16.5]} 40. Kh2 {[%clk
0:00:07.6]} 40... a3 {[%clk 0:00:16.1]} 41. Qd5 {[%clk 0:00:07.7]} 41... b1=Q
{[%clk 0:00:15]} 42. Qxe5+ {[%clk 0:00:07.8]} 42... f6 {[%clk 0:00:14.7]} 43.
Qe7+ {[%clk 0:00:07.6]} 43... Kh6 {[%clk 0:00:15.1]} 44. Qf8+ {[%clk 0:00:07.9]}
44... Kg5 {[%clk 0:00:13.6]} 45. h4+ {[%clk 0:00:08.4]} 45... Kf5 {[%clk
0:00:11.2]} 46. g4+ {[%clk 0:00:08.7]} 46... Kf4 {[%clk 0:00:09.7]} 47. Qxf6+
{[%clk 0:00:09.3]} 47... Qf5 {[%clk 0:00:10]} 48. Qd4+ {[%clk 0:00:07.9]} 48...
Ne4 {[%clk 0:00:08.1]} 49. Rxe4+ {[%clk 0:00:07.4]} 49... Kxf3 {[%clk
0:00:07.8]} 50. Qe3# {[%clk 0:00:07.1]} 1-0